bitfinex-derivatives/quotes_BNBF0:USTF0_20250330
["timestamp","ask_amount","ask_price","bid_price","bid_amount"]
[1743348930438,1.50572773,603.73,603.05,0.28836712]
[1743348930743,1.20225153,603.74,603.05,0.28836712]
[1743348931045,2.70740526,603.73,603.05,0.28836712]
[1743348931244,1.20225153,603.73,603.04,0.33165295]
[1743348931441,1.50467196,603.72,603.04,0.33165295]
[1743348931639,1.20225153,603.73,603.05,0.28837548]
[1743348931842,1.50467566,603.72,603.05,0.28837548]
[1743348932143,0.96247435,603.85,603.05,0.28837548]
[1743348932445,4.87430072,603.84,603.05,0.28837548]
[1743348932645,4.87430072,603.83,603.05,0.28837548]
[1743348932943,4.87430072,603.82,603.05,0.28837548]
[1743348933245,3.91182637,603.81,603.05,0.28837548]
[1743348933538,3.91182637,603.8,603.05,0.28837548]
[1743348933743,3.91182637,603.79,603.05,0.28837548]
[1743348933943,3.91182637,603.78,603.05,0.28837548]
[1743348934143,3.91035697,603.77,603.05,0.28837548]
[1743348934345,1.5045486,603.76,603.04,0.33165295]
[1743348934543,1.5045486,603.75,603.05,0.28836951]
[1743348934741,1.50338866,603.74,603.05,0.28836951]
[1743348934944,1.50338866,603.73,603.05,0.28836951]
[1743348935146,1.50338866,603.72,603.05,0.28836951]
[1743348935339,1.50338866,603.71,603.05,0.28836951]
[1743348935545,1.50338866,603.7,603.05,0.28836951]
[1743348935740,1.50338866,603.69,603.05,0.28836951]
[1743348935949,1.50338866,603.68,603.05,0.28836951]
[1743348936148,1.50338866,603.67,603.05,0.28836951]
[1743348936342,1.50338866,603.66,603.05,0.28836951]
[1743348936546,1.50338866,603.65,603.05,0.28836951]
[1743348936845,1.20103864,603.71,603.05,0.28836951]
[1743348936846,1.50338866,603.64,603.05,0.28836951]
[1743348937047,1.50338866,603.63,603.05,0.28836951]
[1743348937247,1.50338866,603.62,602.02,2.52433408]
[1743348937446,1.50338866,603.61,602.04,0.33220384]
[1743348937644,1.50338866,603.6,602.04,0.33220384]
[1743348937947,1.50338866,603.59,602.04,0.33220384]
[1743348938147,1.50338866,603.58,602.04,0.33220384]
[1743348938339,1.50338866,603.57,602.04,0.33220384]
[1743348938541,1.50338866,603.56,602.04,0.33220384]
[1743348938747,1.50338866,603.55,602.04,0.33220384]
[1743348939050,1.50338866,603.54,602.04,0.33220384]
[1743348939243,1.50338866,603.53,602.04,0.33220384]
[1743348939444,1.50338866,603.52,602.04,0.33220384]
[1743348939652,1.50338866,603.51,602.04,0.33220384]
[1743348939953,1.50047325,603.5,602.04,0.33220384]
[1743348940150,1.20103864,603.51,602.04,0.33220384]
[1743348940350,1.50000211,603.5,602.04,0.33220384]
[1743348940651,1.50002573,603.49,602.04,0.33220384]
[1743348940845,0.95930144,603.63,602.04,0.33220384]
[1743348941044,5.52210781,603.62,602.04,0.33220384]
[1743348941247,1.19775795,603.49,602.04,0.33220384]
[1743348941747,1.499626,603.48,602.04,0.33220384]
[1743348941947,1.19775795,603.49,602.04,0.33220384]
[1743348942147,1.49948706,603.48,602.04,0.33220384]
[1743348942549,2.49326062,603.72,602.04,0.33220384]
[1743348942748,7.05407671,603.71,602.04,0.33220384]
[1743348942947,7.55115653,603.7,602.04,0.33220384]
[1743348943147,7.55115653,603.69,602.04,0.33220384]
[1743348943351,7.05407671,603.68,602.04,0.33220384]
[1743348943554,7.05407671,603.67,602.04,0.33220384]
[1743348943853,7.05407671,603.66,602.04,0.33220384]
[1743348944053,7.55121988,603.65,602.04,0.33220384]
[1743348944349,10.8275219,603.64,602.04,0.33220384]
[1743348944647,7.05407671,603.63,602.04,0.33220384]
[1743348944852,7.05407671,603.62,602.04,0.33220384]
[1743348945052,7.05407671,603.61,602.04,0.33220384]
[1743348945252,7.05407671,603.6,602.04,0.33220384]
[1743348945453,5.51959197,603.59,602.04,0.33220384]
[1743348945653,5.51959197,603.58,602.04,0.33220384]
[1743348945953,5.51959197,603.57,602.04,0.33220384]
[1743348946152,5.51959197,603.56,602.04,0.33220384]
[1743348946353,5.51959197,603.55,602.04,0.33220384]
[1743348946551,5.51959197,603.54,602.04,0.33220384]
[1743348946747,5.51959197,603.53,602.04,0.33220384]
[1743348946952,4.56081609,603.52,602.04,0.33220384]
[1743348947148,3.89804299,603.51,602.04,0.33220384]
[1743348947353,3.89804299,603.5,602.04,0.33220384]
[1743348947557,3.89804299,603.49,602.04,0.33220384]
[1743348947754,3.89804299,603.48,602.04,0.33220384]
[1743348947955,3.89804299,603.47,602.04,0.33220384]
[1743348948154,3.89804299,603.46,602.04,0.33220384]
[1743348948359,3.89804299,603.45,602.04,0.33220384]
[1743348948550,3.89409914,603.44,602.04,0.33220384]
[1743348948754,3.89409914,603.43,602.04,0.33220384]
[1743348948954,3.89409914,603.42,602.04,0.33220384]
[1743348949156,3.89409914,603.41,602.04,0.33220384]
[1743348949356,3.11071423,603.46,602.04,0.33220384]
[1743348949357,3.89390421,603.4,602.04,0.33220384]
[1743348949558,3.89390421,603.39,602.04,0.33220384]
[1743348949754,3.89390421,603.38,602.04,0.33220384]
[1743348949955,1.4992473,603.37,602.04,0.33220384]
[1743348950157,1.4992473,603.36,602.04,0.33220384]
[1743348950458,1.4992473,603.35,602.04,0.33220384]
[1743348950660,1.4992473,603.34,602.04,0.33220384]
[1743348950858,1.4992473,603.33,602.04,0.33220384]
[1743348951057,1.4992473,603.32,602.04,0.33220384]
[1743348951255,1.19642855,603.35,602.04,0.33220384]
[1743348951450,1.19642855,603.31,602.04,0.33220384]
[1743348952157,1.888,603.48,602.04,0.33220384]
[1743348952351,3.89381931,603.47,602.04,0.33220384]
[1743348952559,3.89358129,603.46,602.04,0.33220384]
[1743348952758,1.49762281,603.45,602.04,0.33220384]
[1743348953058,1.49762281,603.44,602.04,0.33220384]
[1743348953255,1.49762281,603.43,602.04,0.33220384]
[1743348953453,1.49762281,603.42,602.04,0.33220384]
[1743348953659,1.49762281,603.41,602.04,0.33220384]
[1743348953952,1.49762281,603.4,602.04,0.33220384]
[1743348954158,1.49762281,603.39,602.04,0.33220384]
[1743348954354,1.49762281,603.38,602.04,0.33220384]
[1743348954561,1.49762281,603.37,602.04,0.33220384]
[1743348954760,1.49762281,603.36,602.04,0.33220384]
[1743348954956,1.49762281,603.35,602.04,0.33220384]
[1743348955158,1.19580613,603.39,602.04,0.33220384]
[1743348955360,1.19580613,603.35,602.04,0.33220384]
[1743348956160,1.888,603.48,602.04,0.33220384]
[1743348956356,3.89715365,603.47,602.04,0.33220384]
[1743348956660,1.888,603.48,602.04,0.33220384]
[1743348956661,7.00881056,603.46,602.04,0.33220384]
[1743348956858,3.89715365,603.45,602.04,0.33220384]
[1743348957057,1.49890525,603.44,602.04,0.33220384]
[1743348957255,3.89783959,603.43,602.04,0.33220384]
[1743348957455,1.49890525,603.42,602.04,0.33220384]
[1743348957654,1.49890525,603.41,602.04,0.33220384]
[1743348957960,1.49890525,603.4,602.04,0.33220384]
[1743348958163,1.49890525,603.39,602.04,0.33220384]
[1743348958358,1.49890525,603.38,602.04,0.33220384]
[1743348958557,1.19679112,603.4,602.04,0.33220384]
[1743348958758,3.89926441,603.39,602.04,0.33220384]
[1743348958959,1.19679112,603.37,602.04,0.33220384]
[1743348959159,1.49973849,603.36,602.04,0.33220384]
[1743348959361,1.888,603.48,602.04,0.33220384]
[1743348959555,4.56388647,603.47,602.04,0.33220384]
[1743348959759,3.90098148,603.46,602.1,2.52433408]
[1743348959961,3.90098148,603.45,602.12,0.3321597]
[1743348960155,3.90098148,603.44,602.12,0.3321597]
[1743348960363,3.11503964,603.46,602.12,0.3321597]
[1743348960663,3.11503964,603.43,602.12,0.3321597]
[1743348960861,1.50037268,603.42,602.12,0.3321597]
[1743348961062,1.50037268,603.41,602.12,0.3321597]
[1743348961262,1.50037268,603.4,602.15,2.52433408]
[1743348961465,1.50037268,603.39,602.17,0.33213212]
[1743348961765,1.19809217,603.4,602.17,0.33213212]
[1743348962063,1.50039149,603.39,602.17,0.33213212]
[1743348962270,1.50039149,603.38,602.17,0.33213212]
[1743348962466,1.19809217,603.39,602.17,0.33213212]
[1743348962767,1.888,603.48,602.17,0.33213212]
[1743348962963,3.90301101,603.47,602.17,0.33213212]
[1743348963164,3.90301101,603.46,602.17,0.33213212]
[1743348963470,1.50115808,603.45,602.17,0.33213212]
[1743348963766,1.50166854,603.44,602.17,0.33213212]
[1743348963963,1.50166854,603.43,602.17,0.33213212]
[1743348964269,1.19872419,603.44,602.17,0.33213212]
[1743348965167,1.888,603.48,602.17,0.33213212]
[1743348969564,1.888,603.48,602.2,2.52433408]
[1743348969767,1.888,603.48,602.22,0.33210454]
[1743348969969,1.454,603.47,602.22,0.33210454]
[1743348970769,1.376,603.46,602.23,2.52433408]
[1743348971172,1.376,603.46,602.25,0.332088]
[1743348971970,1.376,603.46,602.44,2.52433408]
[1743348972167,1.376,603.46,602.46,0.33197224]
[1743348972372,1.921,603.45,602.46,0.33197224]
[1743348973871,3.542,603.45,602.46,0.33197224]
[1743348974268,3.542,603.45,602.47,2.52433408]
[1743348974472,3.542,603.45,602.48,0.33196122]
[1743348975474,3.542,603.45,602.6,2.52433408]
[1743348975676,4.864,603.45,602.6,2.52433408]
[1743348976978,4.864,603.45,602.48,0.33196122]
[1743348991387,1.51452322,603.44,602.48,2.8562953]
[1743348991584,1.20945053,603.44,602.48,2.8562953]
[1743348992788,1.20945053,603.43,602.49,2.52433408]
[1743348993488,2.943,603.45,602.49,2.52433408]
[1743348993687,1.51551502,603.44,602.49,2.52433408]
[1743348993889,2.943,603.45,602.49,2.52433408]
[1743348994091,1.51551597,603.44,602.48,0.33196122]
[1743348994389,1.51551597,603.43,602.48,0.33196122]
[1743348994590,1.51551597,603.42,602.48,0.33196122]
[1743348994791,1.21017843,603.44,602.48,0.33196122]
[1743348994991,1.21017843,603.41,602.48,0.33196122]
[1743348995595,1.833,603.44,602.48,0.33196122]
[1743348995793,1.51612603,603.43,602.48,0.33196122]
[1743348995986,1.51612603,603.42,602.48,0.33196122]
[1743348996189,1.833,603.44,602.48,0.33196122]
[1743348996391,1.51593051,603.43,602.48,0.33196122]
[1743348996587,1.51593051,603.42,602.48,0.33196122]
[1743348996790,1.21043773,603.41,602.48,0.33196122]
[1743348997294,1.833,603.44,602.48,0.33196122]
[1743348997488,1.51606105,603.43,602.48,0.33196122]
[1743348997688,1.51606105,603.42,602.48,0.33196122]
[1743348997891,1.51606105,603.41,602.48,0.33196122]
[1743348998094,1.2105875,603.43,602.48,0.33196122]
[1743348998294,1.51605427,603.42,602.48,0.33196122]
[1743348998493,1.2105875,603.43,602.48,0.33196122]
[1743348998694,2.72677624,603.42,602.48,0.33196122]
[1743348998889,1.2105875,603.42,602.48,0.33196122]
[1743348999089,1.51612889,603.41,602.48,0.33196122]
[1743348999291,1.2105875,603.42,602.48,0.33196122]
[1743348999587,1.51619092,603.41,602.48,0.33196122]
[1743348999790,3.513,603.44,602.48,0.33196122]
[1743348999990,1.51618609,603.43,602.48,0.33196122]
[1743349000194,1.51618609,603.42,602.48,0.33196122]
[1743349000395,1.51618609,603.41,602.48,0.33196122]
[1743349000593,1.21072236,603.43,602.48,0.33196122]
[1743349000793,1.51625772,603.42,602.48,0.33196122]
[1743349001000,1.21072236,603.4,602.48,0.33196122]
[1743349001297,1.21072236,603.41,602.48,0.33196122]
[1743349001498,1.21072236,603.41,602.48,2.8562953]
[1743349002298,3.513,603.44,602.48,2.8562953]
[1743349002500,1.51655513,603.43,602.5,2.52433408]
[1743349002797,1.51655513,603.42,602.5,2.52433408]
[1743349003002,1.51655513,603.41,602.5,2.52433408]
[1743349003301,3.513,603.44,602.5,2.52433408]
[1743349003302,1.21101598,603.42,602.5,2.52433408]
[1743349003502,1.51651672,603.41,602.5,2.52433408]
[1743349003696,1.51649029,603.4,602.53,2.52433408]
[1743349003901,1.21101598,603.4,602.53,2.52433408]
[1743349004597,1.854,603.39,602.53,2.52433408]
[1743349005297,1.854,603.39,602.54,2.52433408]
[1743349006503,1.854,603.39,602.58,2.52433408]
[1743349007304,1.683,603.38,602.58,2.52433408]
[1743349008197,1.683,603.38,602.65,2.52433408]
[1743349009602,1.683,603.38,602.69,2.52433408]
[1743349010904,1.683,603.38,602.73,2.52433408]
[1743349012504,1.683,603.38,602.75,2.52433408]
[1743349015305,1.683,603.38,602.69,2.52433408]
[1743349017300,1.683,603.38,602.64,0.28850458]
[1743349017301,1.683,603.38,602.7,2.52433408]
[1743349018001,1.401,603.37,602.7,2.85617413]
[1743349018203,1.401,603.37,602.7,0.33184005]
[1743349021416,1.64495415,603.89,602.7,0.33184005]
[1743349021619,7.6221265,603.88,602.7,0.33184005]
[1743349021818,7.6221265,603.87,602.7,0.33184005]
[1743349022016,1.64495415,603.89,602.7,0.33184005]
[1743349022017,7.6221265,603.86,602.7,0.33184005]
[1743349022210,7.6221265,603.85,602.7,0.33184005]
[1743349022412,7.6221265,603.84,602.7,0.33184005]
[1743349022610,7.6221265,603.83,602.7,0.33184005]
[1743349022814,7.6221265,603.82,602.7,0.33184005]
[1743349023015,7.6221265,603.81,602.7,0.33184005]
[1743349023316,9.26708065,603.8,602.7,0.33184005]
[1743349023517,9.26708065,603.79,602.7,0.33184005]
[1743349023710,7.6221265,603.78,602.7,0.33184005]
[1743349023913,7.6221265,603.77,602.7,0.33184005]
[1743349024110,7.62215427,603.76,602.7,0.33184005]
[1743349024417,7.12508466,603.75,602.7,0.33184005]
[1743349024617,7.12508466,603.74,602.7,0.33184005]
[1743349024809,1.844,603.8,602.7,0.33184005]
[1743349024810,7.12508466,603.73,602.7,0.33184005]
[1743349025012,7.12508466,603.72,602.7,0.33184005]
[1743349025317,7.12508466,603.71,602.7,0.33184005]
[1743349025511,7.12508466,603.7,602.7,0.33184005]
[1743349025716,7.12508466,603.69,602.7,0.33184005]
[1743349025911,4.91113161,603.68,602.7,0.33184005]
[1743349026220,8.05835843,603.67,602.7,0.33184005]
[1743349026418,4.91113161,603.66,602.7,0.33184005]
[1743349026618,4.91113161,603.65,602.7,0.33184005]
[1743349026818,4.91113161,603.64,602.7,0.33184005]
[1743349027018,4.91113161,603.63,602.7,0.33184005]
[1743349027225,4.91113161,603.62,602.7,0.33184005]
[1743349027421,1.5160048,603.61,602.7,0.33184005]
[1743349027620,1.5160048,603.6,602.7,0.33184005]
[1743349027820,1.5160048,603.59,602.7,0.33184005]
[1743349028119,1.5160048,603.58,602.7,0.33184005]
[1743349028313,1.5160048,603.57,602.7,0.33184005]
[1743349028517,1.5160048,603.56,602.7,0.33184005]
[1743349028717,1.21047185,603.56,602.7,0.33184005]
[1743349028919,1.51597268,603.55,602.7,0.33184005]
[1743349029215,1.21047185,603.56,602.7,0.33184005]
[1743349029415,1.51567246,603.55,602.7,0.33184005]
[1743349029615,1.21047185,603.55,602.7,0.33184005]
[1743349030422,1.21047185,603.54,602.7,0.33184005]
[1743349031325,1.429,603.64,602.7,0.33184005]
[1743349031519,4.91015128,603.63,602.7,0.33184005]
[1743349031717,4.91015128,603.62,602.7,0.33184005]
[1743349032022,1.51569739,603.61,602.7,0.33184005]
[1743349032218,1.51569739,603.6,602.7,0.33184005]
[1743349032419,1.51569739,603.59,602.7,0.33184005]
[1743349032624,1.51569739,603.58,602.7,0.33184005]
[1743349032823,1.51569739,603.57,602.7,0.33184005]
[1743349033023,1.51569739,603.56,602.7,0.33184005]
[1743349033223,1.51569739,603.55,602.7,0.33184005]
[1743349033423,1.21015279,603.56,602.7,0.33184005]
[1743349033619,1.51549798,603.55,602.7,0.33184005]
[1743349033822,1.21015279,603.55,602.7,0.33184005]
[1743349034319,1.21015279,603.54,602.7,0.33184005]
[1743349034724,1.429,603.64,602.7,0.33184005]
[1743349035026,4.90945749,603.63,602.71,2.52433408]
[1743349035222,4.90945749,603.62,602.71,2.52433408]
[1743349035418,3.94026633,603.61,602.71,2.52433408]
[1743349035619,1.51548705,603.6,602.71,2.52433408]
[1743349035824,1.51548705,603.59,602.71,2.52433408]
[1743349036020,1.51548705,603.58,602.71,2.52433408]
[1743349036222,1.51548705,603.57,602.71,2.52433408]
[1743349036526,1.51548705,603.56,602.72,2.52433408]
[1743349036726,1.51548705,603.55,602.72,2.52433408]
[1743349036919,1.21009235,603.57,602.72,2.52433408]
[1743349037120,1.51537968,603.56,602.72,2.52433408]
[1743349037322,1.51537968,603.55,602.72,2.52433408]
[1743349037525,1.21009235,603.56,602.72,2.52433408]
[1743349037828,1.51537065,603.55,602.72,2.52433408]
[1743349038029,1.51537065,603.55,602.7,0.62031235]
[1743349038030,2.725463,603.54,602.7,0.62031235]
[1743349038228,1.21009235,603.54,602.7,0.62031235]
[1743349039228,1.21009235,603.53,602.7,0.62031235]
[1743349039827,1.21009235,603.52,602.7,0.62031235]
[1743349040924,1.429,603.64,602.7,0.62031235]
[1743349041128,4.91030138,603.63,602.7,0.62031235]
[1743349041325,1.429,603.64,602.7,0.62031235]
[1743349041326,4.91030138,603.62,602.7,0.62031235]
[1743349041629,4.91030138,603.61,602.7,0.62031235]
[1743349041824,4.91030138,603.6,602.7,0.62031235]
[1743349042029,1.51574501,603.59,602.7,0.62031235]
[1743349042328,3.14697828,603.61,602.7,0.33184005]
[1743349042329,1.51574501,603.58,602.7,0.33184005]
[1743349042529,3.94114368,603.57,602.7,0.33184005]
[1743349042725,3.94114368,603.56,602.7,0.6203255]
[1743349042929,3.94112417,603.55,602.7,0.6203255]
[1743349043125,1.51574501,603.54,602.7,0.6203255]
[1743349043329,1.51574501,603.53,602.7,0.6203255]
[1743349043530,1.51574501,603.52,602.72,2.52433408]
[1743349043731,1.51574501,603.51,602.72,2.52433408]
[1743349043931,1.51574501,603.5,602.72,2.52433408]
[1743349044231,1.51574501,603.49,602.72,2.52433408]
[1743349044432,1.21037626,603.51,602.72,2.52433408]
[1743349044627,1.51589574,603.5,602.72,2.52433408]
[1743349044826,1.51589574,603.49,602.72,2.52433408]
[1743349045032,0.66283525,603.62,602.72,2.52433408]
[1743349045231,5.57372883,603.61,602.72,2.52433408]
[1743349045425,5.57372883,603.6,602.72,2.52433408]
[1743349045631,4.91089545,603.59,602.72,2.52433408]
[1743349045827,4.91089545,603.58,602.72,2.52433408]
[1743349046037,4.91089545,603.57,602.72,2.52433408]
[1743349046229,8.05816014,603.56,602.72,2.52433408]
[1743349046427,3.94140831,603.55,602.72,2.52433408]
[1743349046633,3.94140831,603.54,602.72,2.52433408]
[1743349046834,1.51592627,603.53,602.71,2.81281475]
[1743349047034,1.51592627,603.52,602.71,2.81281475]
[1743349047235,1.51592627,603.51,602.71,2.81281475]
[1743349047430,1.51592627,603.5,602.71,2.81281475]
[1743349047735,1.51592627,603.49,602.71,2.81281475]
[1743349047934,1.51592627,603.48,602.71,2.81281475]
[1743349048234,1.51592627,603.47,602.71,2.81281475]
[1743349048436,1.21048642,603.48,602.7,2.85617413]
[1743349048635,1.5159582,603.47,602.7,2.85617413]
[1743349048830,1.21048642,603.47,602.7,2.85617413]
[1743349049737,1.21048642,603.46,602.7,2.85617413]
[1743349049936,1.21048642,603.46,602.71,0.2884998]
[1743349050330,0.66284375,603.58,602.71,0.2884998]
[1743349050533,1.949,603.45,602.71,0.2884998]
[1743349051443,1.949,603.45,602.7,0.33184005]
[1743349051644,1.949,603.45,602.71,0.28850219]
[1743349052546,3.758,603.45,602.71,0.28850219]
[1743349054446,3.758,603.45,602.7,0.33184005]
[1743349054946,3.758,603.45,602.71,0.28850339]
[1743349057349,3.758,603.45,602.7,0.33184005]
[1743349057651,5.411,603.45,602.71,0.28846752]
[1743349057845,5.411,603.45,602.72,0.33182904]
[1743349058743,7.047,603.45,602.72,0.33182904]
[1743349060854,8.605,603.45,602.72,0.33182904]
[1743349061047,8.605,603.45,602.75,2.52433408]
[1743349062849,8.605,603.45,602.72,0.33182904]
[1743349085672,1.2125537,603.44,602.72,0.33182904]
[1743349086670,1.558,603.45,602.72,0.33182904]
[1743349087375,1.51851945,603.44,602.72,0.33182904]
[1743349087675,1.51851945,603.43,602.72,0.33182904]
[1743349087970,1.51851945,603.42,602.72,0.33182904]
[1743349088174,1.51851945,603.41,602.72,0.33182904]
[1743349088374,1.51851945,603.4,602.72,0.33182904]
[1743349088570,1.51851945,603.39,602.72,0.33182904]
[1743349088769,1.51851945,603.38,602.72,0.33182904]
[1743349088969,1.51851945,603.37,602.72,0.33182904]
[1743349089169,1.51851945,603.36,602.72,0.33182904]
[1743349089374,1.51851945,603.35,602.72,0.33182904]
[1743349089571,3.02040416,603.36,602.72,0.33182904]
[1743349089775,1.51797277,603.35,602.72,0.33182904]
[1743349090077,1.21240416,603.35,602.72,0.33182904]
[1743349090977,1.808,603.36,602.72,0.33182904]
[1743349096578,1.803,603.35,602.72,0.33182904]
[1743349097275,1.51571082,603.34,602.71,0.28854764]
[1743349097578,1.51571082,603.33,602.71,0.28854764]
[1743349097880,1.803,603.35,602.71,0.28854764]
[1743349098079,1.21046977,603.33,602.71,0.28854764]
[1743349098278,1.5156568,603.32,602.71,0.28854764]
[1743349098478,1.5156568,603.31,602.71,0.28854764]
[1743349098676,1.5156568,603.3,602.71,0.28854764]
[1743349098880,1.5156568,603.29,602.71,0.28854764]
[1743349099180,1.5156568,603.28,602.71,0.28854764]
[1743349099480,1.5156568,603.27,601.66,2.52433408]
[1743349099781,1.5156568,603.26,602.69,0.288726]
[1743349099975,1.5156568,603.26,601.68,0.3324026]
[1743349099976,1.51402305,603.25,601.68,0.3324026]
[1743349100175,1.51402305,603.24,601.68,0.3324026]
[1743349100376,1.51402305,603.23,601.85,2.52433408]
[1743349100574,1.51314998,603.22,601.87,0.33229767]
[1743349100778,1.21046977,603.26,601.87,0.33229767]
[1743349100977,1.21046977,603.21,601.87,0.33229767]
[1743349101876,1.21046977,603.21,601.88,0.28871162]
[1743349102182,1.93252722,603.32,601.9,0.3322811]
[1743349102379,2.47904254,603.31,601.9,0.3322811]
[1743349102675,1.51200257,603.3,601.9,0.3322811]
[1743349102880,1.51200257,603.29,601.9,0.3322811]
[1743349103177,1.51200257,603.28,601.9,0.3322811]
[1743349103380,1.51200257,603.27,601.9,0.3322811]
[1743349103584,1.51200257,603.26,601.9,0.3322811]
[1743349103886,1.51200257,603.25,601.9,0.3322811]
[1743349104082,1.51200257,603.24,601.9,0.3322811]
[1743349104284,3.13992344,603.28,601.9,0.3322811]
[1743349104482,1.5105477,603.27,601.9,0.3322811]
[1743349104679,1.20739622,603.24,601.9,0.3322811]
[1743349105484,1.20739622,603.23,601.9,0.3322811]
[1743349107088,2.71663848,603.22,601.9,0.3322811]
[1743349107290,1.20739622,603.22,601.9,0.3322811]
[1743349107892,1.20739622,603.21,601.9,0.3322811]
[1743349108890,1.93252722,603.34,601.9,0.3322811]
[1743349109094,4.88806205,603.33,601.9,0.3322811]
[1743349109294,1.93252722,603.34,601.9,0.3322811]
[1743349109295,3.92303386,603.32,601.9,0.3322811]
[1743349109498,1.50885918,603.31,601.9,0.3322811]
[1743349109796,1.50885918,603.3,601.9,0.3322811]
[1743349109994,1.50885918,603.29,601.9,0.3322811]
[1743349110296,1.50885918,603.28,601.9,0.3322811]
[1743349110596,1.50885918,603.27,601.9,0.3322811]
[1743349110896,1.50885918,603.26,601.9,0.3322811]
[1743349111197,1.50885918,603.25,601.9,0.3322811]
[1743349111495,1.50885918,603.24,601.9,0.3322811]
[1743349111695,1.445,603.27,601.9,0.3322811]
[1743349111696,1.50885918,603.23,601.9,0.3322811]
[1743349111897,1.50885918,603.22,601.9,0.3322811]
[1743349112095,1.50885918,603.21,601.9,0.3322811]
[1743349112294,1.50885918,603.2,601.9,0.3322811]
[1743349112494,1.50885918,603.19,601.9,0.3322811]
[1743349112698,1.50885918,603.18,601.9,0.3322811]
[1743349112890,3.07770432,603.21,601.9,0.3322811]
[1743349113094,1.20470432,603.17,601.9,0.3322811]
[1743349114097,1.20470432,603.16,601.9,0.3322811]
[1743349114994,1.873,603.21,601.9,0.3322811]
[1743349115195,1.50679285,603.2,601.9,0.3322811]
[1743349115396,1.50679285,603.19,601.9,0.3322811]
[1743349115593,1.50679285,603.18,601.9,0.3322811]
[1743349115799,1.20311012,603.19,601.9,0.3322811]
[1743349115996,1.50656843,603.18,601.9,0.3322811]
[1743349116193,1.20311012,603.19,601.9,0.3322811]
[1743349116396,1.20311012,603.17,601.9,0.3322811]
[1743349116998,1.807,603.16,601.9,0.3322811]
[1743349121300,1.53,603.15,601.9,0.3322811]
[1743349122098,1.446,603.14,601.9,0.3322811]
[1743349129417,1.446,603.14,601.92,2.52433408]
[1743349129713,1.446,603.14,601.94,0.33225902]
[1743349130914,1.446,603.14,602.11,2.52433408]
[1743349131114,1.446,603.14,602.12,0.3321597]
[1743349132215,1.446,603.14,602.14,2.52433408]
[1743349132415,1.446,603.14,602.15,0.33214315]
[1743349134119,1.446,603.14,602.18,2.52433408]
[1743349134416,1.446,603.14,602.19,0.33212109]
[1743349134814,1.806,603.13,602.19,0.33212109]
[1743349135118,1.806,603.13,602.22,2.52433408]
[1743349135411,1.806,603.13,602.23,0.33209903]
[1743349136614,1.806,603.13,602.23,2.85643311]
[1743349137820,1.806,603.13,602.23,0.33209903]
[1743349139514,1.618,603.12,602.23,0.33209903]
[1743349140919,1.618,603.12,602.28,2.52433408]
[1743349142723,1.618,603.12,602.23,0.33209903]
[1743349147621,1.51463771,603.11,602.23,0.33209903]
[1743349147827,1.618,603.12,602.23,0.33209903]
[1743349148023,1.20957458,603.11,602.23,0.33209903]
[1743349148829,1.618,603.12,602.23,0.33209903]
[1743349149427,1.5150087,603.11,602.23,0.33209903]
[1743349149731,1.805,603.11,602.23,0.33209903]
[1743349150329,1.20990387,603.1,602.23,0.33209903]
[1743349150932,1.805,603.11,602.23,0.33209903]
[1743349151134,1.51542667,603.1,602.23,0.33209903]
[1743349151334,1.805,603.11,602.23,0.33209903]
[1743349151533,1.51535421,603.1,602.23,0.33209903]
[1743349151734,1.805,603.11,602.23,0.33209903]
[1743349151930,1.51533154,603.1,602.23,0.33209903]
[1743349152136,1.805,603.11,602.23,0.33209903]
[1743349152338,1.51547261,603.1,602.23,0.33209903]
[1743349152537,1.51547261,603.09,602.23,0.33209903]
[1743349152736,1.51547261,603.08,602.23,0.33209903]
[1743349152934,1.210263,603.1,602.23,0.33209903]
[1743349153130,2.72571848,603.09,602.23,0.33209903]
[1743349153336,1.51545548,603.08,602.23,0.33209903]
[1743349153539,4.90858723,603.07,602.23,0.33209903]
[1743349153737,4.90858723,603.06,602.23,0.33209903]
[1743349153932,4.90858723,603.05,602.23,0.33209903]
[1743349154237,4.90858723,603.04,602.23,0.33209903]
[1743349154432,4.90858723,603.03,602.23,0.33209903]
[1743349154737,4.90858723,603.02,602.23,0.33209903]
[1743349154938,4.90858723,603.01,602.23,0.33209903]
[1743349155134,4.9068503,603.0,602.23,0.33209903]
[1743349155336,4.9068503,602.99,602.23,0.33209903]
[1743349155537,4.9068503,602.98,602.23,0.33209903]
[1743349155738,4.9068503,602.97,602.23,0.33209903]
[1743349155935,4.9068503,602.96,602.23,0.33209903]
[1743349156135,4.9068503,602.95,602.23,0.33209903]
[1743349156339,2.48364852,602.94,602.23,0.33209903]
[1743349156537,2.48364852,602.93,602.23,0.33209903]
[1743349156737,3.14598269,602.96,602.23,0.33209903]
[1743349156738,1.51450111,602.92,602.23,0.33209903]
[1743349156939,1.51450111,602.91,602.23,0.33209903]
[1743349157140,1.51450111,602.9,602.23,0.33209903]
[1743349157345,1.51450111,602.89,602.23,0.33209903]